Cogmind - Beta 9.4 @@@ ROGUE MODE // 2020.01.09 @ 12:53:23 Player: OccultOnion Result: Destroyed by Y-45 Defender with Heavy Assault Rifle Performance ------------- Evolutions (1) 500 Regions Visited (3) 600 Robots Destroyed (34) 170 Value Destroyed (744) 744 Prototype IDs (0) 0 Alien Tech Used (0) 0 Bonus (142) 142 TOTAL SCORE: 2156 Bonus ------- Follower Combat Kills 172 Friendly Fire -30 Cogmind --------- Core Integrity 0/400 Matter 288/300 Energy 123/125 System Corruption 0% Temperature Cool (9) Movement Walking (150) Ox1 Location -9/Storage Parts ------- > --- POWER (1) -------- Light Ion Engine > --- PROPULSION (3) --- Light Treads Aluminum Leg Aluminum Leg > --- UTILITY (3) ------ Large Storage Unit Improved Terrain Scanner Core Shielding > --- WEAPON (2) ------- Heavy Assault Rifle Heavy Assault Rifle > --- INVENTORY (10) --- Aluminum Leg Improved Aluminum Leg Heat Sink Improved Heat Sink Light Armor Plating Hardened Light Armor Plating Heavy EM Pulse Gun Heavy Assault Rifle Rocket Launcher Datajack Peak State ------------ > --- POWER ------------ Light Angular Momentum Engine > --- PROPULSION ------- Aluminum Leg Aluminum Leg Aluminum Leg > --- UTILITY ---------- Large Storage Unit Improved Terrain Scanner Seismic Analyzer > --- WEAPON ----------- Heavy Assault Rifle Mining Claw > --- INVENTORY -------- Light Ion Engine Light Ion Engine Light Treads Aluminum Leg Improved Heat Sink Core Shielding Rocket Launcher Datajack [Rating: 16] Favorites ----------- Power Light Ion Engine Engine Light Ion Engine Propulsion Aluminum Leg Treads Light Treads Leg Aluminum Leg Utility Improved Terrain Scanner Device Improved Terrain Scanner Storage Large Storage Unit Processor Seismic Analyzer Protection Core Shielding Weapon Assault Rifle Energy Gun EM Pulse Gun Ballistic Gun Assault Rifle Slashing Weapon Mining Claw Build | -11 -10 -9 -9 ------- Run | Scr Mat Mat Sto Slots Evolved 2 | . . 2 . Power . | . . . . Propulsion 1 | . . 1 . Utility 1 | . . 1 . Weapon . | . . . . Parts Attached 29 | 8 3 3 15 Power 5 | 1 1 . 3 Engine 5 | 1 1 . 3 Core . | . . . . Reactor . | . . . . Propulsion 9 | 2 . 1 6 Treads 1 | . . . 1 Leg 8 | 2 . 1 5 Wheel . | . . . . Hover . | . . . . Flight . | . . . . Utility 6 | 2 2 1 1 Device 2 | 1 1 . . Storage 2 | 1 1 . . Processor 1 | . . 1 . Hackware . | . . . . Protection 1 | . . . 1 Artifact . | . . . . Weapon 9 | 3 . 1 5 Energy Gun 1 | . . . 1 Energy Cannon . | . . . . Ballistic Gun 7 | 3 . 1 3 Ballistic Cannon . | . . . . Launcher . | . . . . Special Weapon . | . . . . Impact Weapon . | . . . . Slashing Weapon 1 | . . . 1 Piercing Weapon . | . . . . Special Melee Weapon . | . . . . Unidentified Prototypes . | . . . . Parts Lost 16 | . 2 . 14 Power 4 | . 1 . 3 Propulsion 6 | . . . 6 Utility 1 | . 1 . . Weapon 5 | . . . 5 Highest Loss Streak 6 | . 1 . 6 Average Slot Usage (%) 95 | . 98 100 93 Engine 11 | . 13 11 10 Treads 2 | . . . 3 Leg 26 | . 28 33 24 Device 11 | . 13 11 11 Storage 11 | . 14 11 11 Processor 6 | . . 11 9 Ballistic Gun 21 | . 28 22 17 Slashing Weapon 2 | . . . 3 Naked Turns . | . . . . Heaviest Build 31 | 11 23 24 31 Greatest Support 30 | 20 20 30 30 Greatest Overweight (x) 2 | . 1 . 2 Average Overweight (x) . | . . . . Largest Inventory Capacity 10 | 6 10 10 10 Average Capacity 9 | 5 9 10 10 Most Carried 10 | 6 10 10 10 Average Carried 8 | 4 7 9 9 Final Capacity 10 | 6 10 10 10 Final Carried 10 | 5 10 10 10 Class Distribution -------------------- 64% | Mutant 35% | Scavenger-Mutant Dominant Class ---------------- Mutant | -10/Materials Mutant | -9/Materials Scavenger-Mutant | -9/Storage Resources | -11 -10 -9 -9 ----------- Run | Scr Mat Mat Sto Matter Collected 886 | 332 132 78 344 Remotely . | . . . . Salvage Created 1119 | 167 215 128 609 Parts 86 | 6 22 8 50 Haulers Intercepted 1 | . 1 . . Recyclers Shooed . | . . . . Parts Field Recycled . | . . . . Retrieved Matter . | . . . . Parts Self-Destructed . | . . . . Prevented . | . . . . Kills | -11 -10 -9 -9 ------- Run | Scr Mat Mat Sto Combat Hostiles Destroyed 27 | . 10 2 15 Guns 27 | . 10 2 15 Classes Destroyed 9 | 2 3 2 2 Worker 1 | . . . 1 Tunneler 3 | 3 . . . Hauler 1 | . 1 . . Recycler 1 | 1 . . . Watcher 1 | . . 1 . Swarmer 13 | . 9 . 4 Grunt 5 | . 1 1 3 Protector 1 | . . . 1 Sentry 8 | . . 1 7 Best Kill Streak 6 | 3 6 2 5 Combat Bots Only 6 | . 6 1 4 Max Kills in Single Turn 2 | 1 2 1 1 Gunslinging 1 | . 1 . . Exploded . | . . . . Melee . | . . . . Uniques/NPCs Destroyed . | . . . . Combat | -11 -10 -9 -9 -------- Run | Scr Mat Mat Sto Damage Taken 2016 | . 343 119 1554 Core 450 | . 50 26 374 Absorbed by Shields . | . . . . Core Remaining (%) 90 | 100 80 . . Volleys Fired 116 | 13 28 11 64 Largest 2 | 2 2 2 2 Hottest 60 | 40 40 40 60 Shots Fired 196 | 26 56 22 92 Gun 196 | 26 56 22 92 Cannon . | . . . . Launcher . | . . . . Special . | . . . . Kinetic 187 | 26 56 22 83 Thermal . | . . . . Explosive . | . . . . Electromagnetic 9 | . . . 9 Robot Hit Streak 10 | 4 7 9 10 Robot Miss Streak 3 | 3 2 3 2 Penetration Max . | . . . . Secondary Targets 4 | . 2 . 2 Max Gunslinging Chain 1 | . 1 . 1 Shots Hit Robots 134 | 15 34 14 71 Core Hits 55 | 6 15 6 28 Critical Hits . | . . . . Critical Kills . | . . . . Critical Parts Destroyed . | . . . . Melee Attacks 8 | . . . 8 Impact . | . . . . Slashing 8 | . . . 8 Piercing . | . . . . Sneak Attacks 2 | . . . 2 Combat Hostiles . | . . . . Follow-up Attacks . | . . . . Damage Inflicted 1823 | 157 336 150 1180 Guns 1634 | 157 335 150 992 Cannons . | . . . . Explosions . | . . . . Melee 184 | . . . 184 Ramming 5 | . 1 . 4 Kinetic 1551 | 157 335 150 909 Thermal . | . . . . Explosive . | . . . . Electromagnetic 83 | . . . 83 Impact . | . . . . Slashing 184 | . . . 184 Piercing . | . . . . Highest Corruption . | . . . . Average Corruption . | . . . . Corruption Purged . | . . . . Overload Shots . | . . . . Overflow Damage 10 | . . . 10 Projectiles . | . . . . Explosions . | . . . . Melee 10 | . . . 10 Knockbacks . | . . . . Impact . | . . . . Kinetic . | . . . . Secondary . | . . . . Self-Inflicted Damage . | . . . . Shots . | . . . . Rammed . | . . . . Targets Rammed 2 | . 1 . 1 Kicked 2 | . 1 . 1 Crushed . | . . . . Highest Temperature 18 | . 12 3 18 Average Temperature 7 | . 8 3 7 Received Heat Transfer 561 | . 36 51 474 Siege Activations . | . . . . Robots Corrupted . | . . . . Combat Hostiles . | . . . . Parts Fried . | . . . . Impact Corruptions . | . . . . Robots Melted . | . . . . Combat Hostiles . | . . . . Parts Melted . | . . . . Heat Transferred . | . . . . Parts Sabotaged . | . . . . Parts Stolen . | . . . . Parts Stripped . | . . . . Power Chain Reactions . | . . . . Missiles Intercepted . | . . . . Alert | -11 -10 -9 -9 ------- Run | Scr Mat Mat Sto Peak Influence 415 | 20 259 111 415 Average Influence 138 | 7 114 59 196 Maximum Alert Level 2 | . 1 . 2 Low Security (%) 72 | 100 85 100 52 Level 1 25 | . 14 . 43 Level 2 2 | . . . 4 Level 3 . | . . . . Level 4 . | . . . . Level 5 . | . . . . High Security . | . . . . Max Security . | . . . . Squads Dispatched 5 | . 2 . 3 Investigation 1 | . 1 . . Extermination . | . . . . Reinforcement 1 | . 1 . . Assault 2 | . . . 2 Garrison 1 | . . . 1 Intercept . | . . . . Construction Impeded . | . . . . Haulers Reinforced . | . . . . Stealth | -11 -10 -9 -9 --------- Run | Scr Mat Mat Sto Distress Signals 4 | . . 1 3 Communications Jammed . | . . . . Distress Signals . | . . . . Times Spotted 43 | . 11 5 27 Peak Tracking Total 8 | . 6 2 8 Tactical Retreats . | . . . . Traps | -11 -10 -9 -9 ------- Run | Scr Mat Mat Sto Traps Triggered . | . . . . Indirectly . | . . . . Trap Hack Attempts . | . . . . Triggered . | . . . . Disarmed . | . . . . Reprogrammed . | . . . . Reused . | . . . . Traps Extracted . | . . . . Installed . | . . . . Triggered . | . . . . Machines | -11 -10 -9 -9 ---------- Run | Scr Mat Mat Sto Machines Disabled . | . . . . Max in Single Turn . | . . . . Machines Sabotaged . | . . . . Garrisons Compromised . | . . . . Overloaded Fab Kills . | . . . . Fab Network Shutdowns . | . . . . Hacking | -11 -10 -9 -9 --------- Run | Scr Mat Mat Sto Machines Accessed 10 | . 2 1 7 Terminals 9 | . 2 1 6 Fabricators . | . . . . Repair Stations . | . . . . Recycling Units 1 | . . . 1 Scanalyzers . | . . . . Garrison Access . | . . . . Total Hacks 19 | . 4 2 13 Successful 10 | . 1 1 8 Failed 9 | . 3 1 5 Catastrophic 2 | . 2 . . Database Lockouts . | . . . . Manual 5 | . . 1 4 Terminals 18 | . 4 2 12 Fabricators . | . . . . Repair Stations . | . . . . Recycling Units 1 | . . . 1 Scanalyzers . | . . . . Garrison Access . | . . . . Terminal Hacks 9 | . 1 1 7 Robot Analysis 1 | . 1 . . Open Door 1 | . . . 1 Level Access Points 1 | . . . 1 Alert Level 3 | . . 1 2 Unreport Threat 1 | . . . 1 Locate Traps 1 | . . . 1 Zone Layout 1 | . . . 1 Fabricator Hacks . | . . . . Repair Station Hacks . | . . . . Recycling Unit Hacks 1 | . . . 1 Report Inventory 1 | . . . 1 Scanalyzer . | . . . . Garrison Access Hacks . | . . . . Unauthorized Hacks . | . . . . Terminals . | . . . . Fabricators . | . . . . Repair Stations . | . . . . Recycling Units . | . . . . Scanalyzers . | . . . . Garrison Access . | . . . . Data Cores Recovered . | . . . . Used . | . . . . Hacking Detections 7 | . 2 1 4 Full Trace Events 1 | . 1 . . Feedback Events . | . . . . Feedback Blocked . | . . . . Robot Schematics Acquired . | . . . . Robots Built . | . . . . Matter . | . . . . Time . | . . . . Total Robot Build Rating . | . . . . Part Schematics Acquired . | . . . . Parts Built . | . . . . Matter . | . . . . Time . | . . . . Total Part Build Rating . | . . . . Parts Repaired . | . . . . Time . | . . . . Parts Recycled . | . . . . Recycled Matter . | . . . . Retrieved Matter . | . . . . Retrieved Components . | . . . . Parts Scanalyzed . | . . . . Part Schematics Acquired . | . . . . Parts Damaged . | . . . . Bothacking | -11 -10 -9 -9 ------------ Run | Scr Mat Mat Sto Used RIF Installer . | . . . . Robots Hacked . | . . . . Non-combat . | . . . . Combat . | . . . . Robot Hacks Applied . | . . . . Relay Couplers Released . | . . . . Robots Rewired . | . . . . Allies Hacked . | . . . . Hacks Repelled . | . . . . Allies | -11 -10 -9 -9 -------- Run | Scr Mat Mat Sto Total Allies 2 | . . . 2 Largest Group 2 | . . . 2 Highest-Rated Group 62 | . . . 62 Highest-Rated Ally 31 | . . . 31 Total Orders . | . . . . Ally Attacks 21 | . . . 21 Total Damage 379 | . . . 379 Kills 6 | . . . 6 Allies Corrupted . | . . . . Allies Melted . | . . . . Intel | -11 -10 -9 -9 ------- Run | Scr Mat Mat Sto Robot Analysis Total 1 | . 1 . . Derelict Logs Recovered . | . . . . Drone Launches . | . . . . Drone Recoveries . | . . . . Exploration | -11 -10 -9 -9 ------------- Run | Scr Mat Mat Sto Turns Passed 1472 | 130 429 183 730 Spaces Moved 725 | 62 216 110 337 Core 8 | 8 . . . Treads . | . . . . Legs 717 | 54 216 110 337 Wheels . | . . . . Hover . | . . . . Flight . | . . . . Fastest Speed 50 | 50 120 120 120 Average Speed 137 | 110 141 120 145 Slowest Speed 180 | 120 150 120 180 Overloaded Moves . | . . . . Propulsion Burnouts . | . . . . Robots Hopped . | . . . . Cave-ins Triggered . | . . . . Exploration Rate (%) 21 | 4 26 13 44 Regions Visited 3 Branch Regions 1 Pre-discovered Areas . | . . . . Known Exits Taken . | . . . . Unknown Exits Taken 3 | 1 1 1 . Scrap Searched . | . . . . Spaces Dug 1 | . . . 1 Terrain Destroyed 1 | . . . 1 Melee 1 | . . . 1 Projectile . | . . . . AOE . | . . . . Actions | -11 -10 -9 -9 --------- Run | Scr Mat Mat Sto Total 1007 | 100 289 141 477 Wait 73 | 4 29 14 26 Move 722 | 61 215 109 337 Hop . | . . . . Pick Up 46 | 13 10 3 20 Fast Attach . | . . . . Attach 26 | 7 2 2 15 Detach . | . . . . Swap 3 | 1 1 1 . Drop 11 | 1 3 1 6 Fire 116 | 13 28 11 64 Melee 8 | . . . 8 Ram . | . . . . Kick 2 | . 1 . 1 Crush . | . . . . Escape Stasis . | . . . . Rewire . | . . . . Trap . | . . . . Miscellaneous . | . . . . Route ------- -11/Scrapyard -10/Materials -9/Materials -9/Storage (discovered 1 exit: Mat) History --------- Turn | Location | Event 17 | -11/Scrapyard | Discovered new exit (range 15) 131 | -11/Scrapyard | Entered Materials 308 | -10/Materials | Build established: Mutant 494 | -10/Materials | Discovered new exit (range 16) 560 | -10/Materials | Entered another Materials area 560 | -9/Materials | Evolved 2 slots: Propulsion x1, Utility x1 715 | -9/Materials | Discovered new exit (range 9) 743 | -9/Materials | Entered Storage 767 | -9/Storage | Identified exit to Materials 769 | -9/Storage | Met a pair of Derelict thieves 940 | -9/Storage | Core integrity fell below 50% 961 | -9/Storage | Lost 6 parts (1p2n3w) 1132 | -9/Storage | Core integrity fell below 20% 1213 | -9/Storage | Lost 5 parts (1p2n2w) 1470 | -9/Storage | Garrison activated, responded to threat 1473 | -9/Storage | Destroyed by Y-45 Defender with Heavy Assault Rifle Last Messages --------------- 01343_ K-01 Serf collects debris. 01344_ Acquired 8 matter. 01346_ Acquired 4 matter. 01362_ U-05 Engineer builds a Door. 01367_ W-16 Scout sends out distress signal. 01389_ Connecting with Terminal... >>Open Sealed Heavy Doors opened. 01393_ Discarded Seismic Analyzer. 01395_ Acquired Hrd. Light Armor Plating. 01405_ Lgt. Ion Engine destroyed. 01414_ Y-45 Defender destroyed. 01420_ Acquired 35 matter. 01422_ Acquired 10 matter. 01424_ Acquired Lgt. Armor Plating. 01429_ Dropped Hvy. Assault Rifle. 01429_ Acquired Hvy. Assault Rifle. 01439_ Kicked W-16 Scout out of the way. 01470_ Y-45 Defender calls for garrison reinforcements. 01470_ ALERT: Activating Garrison Access S001. Map ----- +----------------------------------------------------+ | ?????????????????????????????????????????????????? | | ???????????????????????????????????#??????????#??? | | ?????????????????????????????????#???????????????? | | ????????????????????????????????????#????????##### | | ??????????????????????????????????????#???????# | | ??????????????????????????????????????????????#^ | | ??????????????????????????????????????? ?? ?# | | ????????????????????????????????????? ?? """??# | | ???????????????????????????????????R???? """" # | | ???????????????????????????????????????? """" + | | ???????????????????????????????????????? """" # | | ????????????????????????????????????#?? ??# | | ?????????????????????????????????#??? ?? ?# | | ?????????????????????????#??????????# ??? ?# | | ??????????????? ????????? ??????????##??T?##??# | | ????????????????????????? ??????????????"?###?# | | ????????????????????????? ??????????#????###### | | ????????????????????????# #???????????#?#####"" | | ?????????????? ?????????# #????????##?###?###"" | | ????????????????????????# #??????###??#######"T | | ????????????????????????#k#???#???###?#####?#"" | | ????????????????????????# ##??##?####?####?##"" | | ??????????????#?????????# #???????####?######## | | ????????????????????????#r#???#####?#####?##?## | | ??????????? ????????????#Y#?##???############## | | ???????????????????????##@#??#?##### #####?#### | | ????????????????? ?????## ##?### ###### | | ????????????? ???????? # u##### """ """ ###?## | | ?????????????????????? # + """ """ ###### % | | ????????????? ?????"? # ##### """ """%###?## % | | ????????????????? ?????## ##?### *%#?#### %% | | ???????????????????"? ??#%#????# *!%######% | | ????????????????????????# #?#?## %=%+%%% = | | ??????????????#?? ??"??## ###### !%%######%% | | ?????????????????? ??? ?# ##?#######+###########+# | | ??????????#?????????#?### ######## #### %% | | ????????????????????#??# ##"" """" " | | ?????????????????????### ##"T """" " | | ???????????????????????#[ %= ##"" """" " | | ???????????#?????????#?###+####### #### " "" " | | ??????????????????#?#????#[!########+###### | | ????????????????#???????## !!## ## | | ??????????????????##?????# !!!## ####+#### | | ????????????????????????###T###### """" ## % ### | | ?????????????????#????##??######## """" ## | | ????????????????????##?##??##???## """" ## | | ??????????????????????##?????????# """" ## ### | | ??????????????????????#??????##?## ### #### | | ?????????????????????????#?#?##### [ ### #### | | ??????????????????#?#?#?????################ # | +----------------------------------------------------+ Best States ------------- Heat Dissipation 28 Energy Generation 18 Energy Capacity 150 Matter Stores 300 Matter Capacity 300 Sight Range 16 Terrain Scan Range 16 Terrain Scan Density 60 Core Shielding 20 Evasion (%) 40 Item Schematics ----------------- None Robot Schematics ------------------ None Fabricated ------------ Nothing Alien Tech Used ----------------- None Achievements -------------- None Challenges ------------ None Game ------ Seed PointFlightGun Manual? 0 Play Time 00:17:13 Cumulative 21.1 hours Start 2020.01.09 @ 12:37:39 End 2020.01.09 @ 12:53:23 Sessions 1 Manual Loads 0 Difficulty Rogue Special Mode None Game No. 49 Rogue 49 Adventurer 0 Explorer 0 Win Type - Total 0 Types 0/0/0/0/0/0/0 Lore% 16 Gallery% 32 Achievement% 21 Wizard Run 0 Options --------- ASCII 0 Keyboard 0 Movement Numpad Keybinds 0 Fullscreen 1 Font 18/SmallcapsGlow Map View 76x50 Tactical HUD 1 Map Filters NONE Filters NONE Steam 1 RUN: a59beab5-7798-490a-9cd2-f831fecd34fb